bitfinex-derivatives/quotes_BNBF0:USTF0_20250331
["timestamp","ask_amount","ask_price","bid_price","bid_amount"]
[1743447781465,0.30263672,607.83,606.43,2.75168244]
[1743447781666,0.30263672,607.83,606.45,0.32978811]
[1743447781866,0.30263672,607.82,606.45,0.32978811]
[1743447782066,0.28662735,607.82,606.45,0.32978811]
[1743447782267,0.30263672,607.81,606.45,0.32978811]
[1743447782770,0.30263584,607.8,606.45,0.32978811]
[1743447782965,0.30263584,607.81,606.45,0.32978811]
[1743447783167,0.30263584,607.8,606.45,0.32978811]
[1743447783362,0.28662735,607.82,606.45,0.32978811]
[1743447784069,0.30263642,607.81,606.45,0.32978811]
[1743447784670,0.32899065,607.92,606.45,0.32978811]
[1743447784861,0.30263642,607.8,606.45,0.32978811]
[1743447785061,0.28667339,607.8,606.45,0.32978811]
[1743447785463,0.30263642,607.79,606.45,0.32978811]
[1743447787968,0.30263642,607.78,606.45,0.32978811]
[1743447788270,0.30263642,607.77,606.45,0.32978811]
[1743447788472,0.30263642,607.77,606.46,1.9640293]
[1743447788669,0.28665923,607.78,606.48,0.32977179]
[1743447789365,0.30268988,607.77,606.48,0.32977179]
[1743447791370,0.28665923,607.78,606.48,0.32977179]
[1743447791567,0.30269949,607.77,606.48,0.32977179]
[1743447804880,1.086,607.76,606.48,0.32977179]
[1743447805081,0.30269949,607.75,606.48,0.32977179]
[1743447806082,0.28673008,607.74,606.48,0.32977179]
[1743447806382,0.30269949,607.73,606.48,0.32977179]
[1743447809087,0.28671827,607.72,606.48,0.32977179]
[1743447809586,0.30269949,607.71,606.48,0.32977179]
[1743447815085,0.28672536,607.7,606.48,0.32977179]
[1743447815483,0.30269949,607.69,606.48,0.32977179]
[1743447815679,0.28672536,607.7,606.48,0.32977179]
[1743447815884,0.3026817,607.69,606.48,0.32977179]
[1743447816586,0.28672536,607.7,606.48,0.32977179]
[1743447817787,1.086,607.76,606.48,0.32977179]
[1743447818086,0.28673481,607.69,606.48,0.32977179]
[1743447820783,1.086,607.76,606.48,0.32977179]
[1743447821183,0.28673835,607.75,606.48,0.32977179]
[1743447826887,1.086,607.76,606.48,0.32977179]
[1743447827095,0.28668993,607.74,606.48,0.32977179]
[1743447831189,0.3026196,607.73,606.49,1.9640293]
[1743447831389,0.3026196,607.73,606.51,0.32975548]
[1743447831592,0.3026196,607.73,606.52,1.9640293]
[1743447831792,0.28668993,607.74,606.54,0.32973917]
[1743447832094,0.30262936,607.73,606.55,1.9640293]
[1743447832294,0.30262936,607.73,606.57,0.32972286]
[1743447832490,0.30262936,607.73,606.58,1.9640293]
[1743447832695,0.30262936,607.73,606.6,0.32970656]
[1743447832994,0.30262936,607.73,606.61,1.9640293]
[1743447833189,0.28660847,607.72,606.62,0.32969569]
[1743447836000,1.086,607.76,606.62,0.32969569]
[1743447836299,0.28665568,607.71,606.62,0.32969569]
[1743447838897,1.086,607.76,606.62,0.32969569]
[1743447839098,0.28666631,607.7,606.62,0.32969569]
[1743447841807,1.086,607.76,606.62,0.32969569]
[1743447842006,0.30262139,607.75,606.62,0.32969569]
[1743447842208,0.28665214,607.69,606.62,0.32969569]
[1743447843005,0.28665214,607.69,606.63,1.9640293]
[1743447843006,0.30261988,607.68,606.63,1.9640293]
[1743447843213,0.30261988,607.68,606.64,2.29371412]
[1743447843402,0.30261988,607.68,606.65,2.29370868]
[1743447843601,0.30261988,607.68,606.66,2.29370325]
[1743447843901,0.30261988,607.68,606.67,2.29369781]
[1743447844105,0.30261988,607.68,606.68,2.29369238]
[1743447844303,0.30261988,607.68,606.69,2.29368695]
[1743447844505,0.30261988,607.68,606.7,5.04536395]
[1743447844802,0.30261988,607.68,606.71,2.29367608]
[1743447845004,1.086,607.76,606.71,2.29367608]
[1743447845005,0.30261988,607.75,606.72,1.9640293]
[1743447845201,0.30261988,607.74,606.73,1.9640293]
[1743447845403,0.28659076,607.74,606.72,1.9640293]
[1743447845607,0.30261988,607.73,606.73,1.9640293]
[1743447846707,0.30261988,607.73,606.74,3.08131292]
[1743447846911,0.30261988,607.73,606.75,0.32962505]
[1743447847309,0.30263666,607.72,606.75,0.32962505]
[1743447847615,0.30263666,607.71,606.75,0.32962505]
[1743447847811,0.30263666,607.73,606.75,0.32962505]
[1743447848005,0.30263666,607.75,606.75,0.32962505]
[1743447848211,0.30263666,607.74,606.75,0.32962505]
[1743447848404,1.086,607.76,606.75,0.32962505]
[1743447848405,0.2866427,607.72,606.75,0.32962505]
[1743447848609,0.30263666,607.71,606.75,0.32962505]
[1743447851215,0.5892947,607.7,606.75,0.32962505]
[1743447851512,0.30263666,607.69,606.75,0.32962505]
[1743447854314,0.28665804,607.7,606.75,0.32962505]
[1743447854511,0.30264684,607.69,606.75,0.32962505]
[1743447857219,0.28668756,607.68,606.75,0.32962505]
[1743447857416,0.30264684,607.67,606.75,0.32962505]
[1743447857621,0.28668756,607.68,606.75,0.32962505]
[1743447858219,0.30264699,607.67,606.75,0.32962505]
[1743447860120,0.28668756,607.68,606.75,0.32962505]
[1743447862926,0.741,607.7,606.75,0.32962505]
[1743447863125,0.28663916,607.67,606.75,0.32962505]
[1743447864125,0.30262016,607.66,606.75,0.32962505]
[1743447869135,0.28663916,607.67,606.75,0.32962505]
[1743447869136,0.30267874,607.65,606.75,0.32962505]
[1743447869331,0.30267874,607.64,606.75,0.32962505]
[1743447869533,0.30267874,607.63,606.75,0.32962505]
[1743447869733,0.28663916,607.67,606.75,0.32962505]
[1743447869933,0.3026809,607.66,606.75,0.32962505]
[1743447870536,0.28663916,607.67,606.75,0.32962505]
[1743447870833,0.30272658,607.66,606.75,0.32962505]
[1743447874341,0.30276278,607.65,606.75,0.32962505]
[1743447874538,0.30276278,607.64,606.75,0.32962505]
[1743447874740,0.30276278,607.66,606.75,0.32962505]
[1743447875040,0.30276278,607.65,606.75,0.32962505]
[1743447875238,0.30276278,607.64,606.75,0.32962505]
[1743447875539,0.30276278,607.63,606.75,0.32962505]
[1743447875740,0.30276278,607.64,606.75,0.32962505]
[1743447875940,0.30276278,607.63,606.75,0.32962505]
[1743447876141,0.2867927,607.65,606.75,0.32962505]
[1743447876337,0.3027974,607.64,606.75,0.32962505]
[1743447878141,0.3027974,607.63,606.75,0.32962505]
[1743447878338,0.28684944,607.63,606.75,0.32962505]
[1743447878642,0.3027974,607.62,606.75,0.32962505]
[1743447881042,0.3028117,607.61,606.75,0.32962505]
[1743447881237,0.3028117,607.6,606.75,0.32962505]
[1743447884142,0.3028117,607.6,606.75,0.32962505]
[1743447885744,0.30281227,607.59,606.75,0.32962505]
[1743447886041,0.30281227,607.58,606.75,0.32962505]
[1743447886244,0.30281227,607.6,606.75,0.32962505]
[1743447886445,0.30281227,607.6,605.27,2.50600127]
[1743447886640,0.30281227,607.6,605.38,0.330371]
[1743447887040,0.30281227,607.69,605.38,0.330371]
[1743447887242,0.28686954,607.59,605.38,0.330371]
[1743447887546,0.3028323,607.58,605.38,0.330371]
[1743447887747,0.2868589,607.58,605.38,0.330371]
[1743447887947,0.3028323,607.57,605.38,0.330371]
[1743447888944,0.30282912,607.56,605.38,0.330371]
[1743447889144,0.30282912,607.57,605.38,0.330371]
[1743447889342,0.30282912,607.56,605.38,0.330371]
[1743447889647,0.30282912,607.55,605.38,0.330371]
[1743447889845,0.30282912,607.54,605.38,0.330371]
[1743447890049,0.30282912,607.53,605.38,0.330371]
[1743447890248,0.30282912,607.57,605.38,0.330371]
[1743447891050,1.40182912,607.57,605.38,0.330371]
[1743447891346,0.30282912,607.56,605.38,0.330371]
[1743447892551,0.30282912,607.56,605.39,0.28686126]
[1743447892747,0.30282912,607.56,605.49,0.33031098]
[1743447893153,0.28684471,607.55,605.49,0.33031098]
[1743447895852,0.30282912,607.56,605.49,0.33031098]
[1743447896151,0.28683998,607.54,605.49,0.33031098]
[1743447898854,0.30282912,607.56,605.49,0.33031098]
[1743447899156,0.28686599,607.53,605.49,0.33031098]
[1743447901856,0.30282912,607.56,605.49,0.33031098]
[1743447902257,0.28687663,607.52,605.49,0.33031098]
[1743447904455,1.075,607.51,605.49,0.33031098]
[1743447905358,0.28685535,607.5,605.49,0.33031098]
[1743447907865,1.075,607.51,605.49,0.33031098]
[1743447908366,0.28684353,607.5,605.49,0.33031098]
[1743447908866,0.28684353,607.5,605.68,2.50600127]
[1743447909065,0.28684353,607.5,605.7,0.33019646]
[1743447910463,0.28684353,607.5,605.72,2.50600127]
[1743447910868,1.075,607.51,605.72,2.50600127]
[1743447911070,1.075,607.51,605.74,0.33017466]
[1743447911269,0.28679743,607.49,605.74,0.33017466]
[1743447913766,1.075,607.51,605.74,0.33017466]
[1743447914071,0.28679743,607.48,605.74,0.33017466]
[1743447916876,1.075,607.51,605.74,0.33017466]
[1743447917176,0.28680452,607.47,605.74,0.33017466]
[1743447919881,1.075,607.51,605.74,0.33017466]
[1743447920377,0.28681279,607.5,605.74,0.33017466]
[1743447923880,0.28681279,607.5,605.76,2.50600127]
[1743447924081,0.28681279,607.5,605.78,0.33015286]
[1743447924884,0.28681279,607.5,605.79,2.50600127]
[1743447925082,0.28681279,607.5,605.81,0.33013651]
[1743447925883,1.075,607.51,605.81,0.33013651]
[1743447926179,0.28678916,607.49,605.81,0.33013651]
[1743447926376,0.28678916,607.49,605.82,2.50600127]
[1743447926581,0.28678916,607.49,605.84,0.33012016]
[1743447928781,0.28678916,607.49,605.87,2.50600127]
[1743447928981,1.075,607.51,605.89,0.33009292]
[1743447929186,0.28677025,607.48,605.89,0.33009292]
[1743447931486,0.28677025,607.48,605.89,2.83609419]
[1743447931988,1.075,607.51,605.89,2.83609419]
[1743447932287,1.075,607.51,605.89,0.33009292]
[1743447932486,0.28675843,607.47,605.89,0.33009292]
[1743447934490,0.28675843,607.47,605.9,1.97175938]
[1743447934689,0.28675843,607.47,606.03,2.50600127]
[1743447934985,0.28675843,607.47,606.05,0.33000577]
[1743447935189,0.28675843,607.47,606.06,1.97175938]
[1743447935382,0.28675843,607.47,606.07,1.97175938]
[1743447935584,0.28675843,607.47,606.08,1.97175938]
[1743447935787,0.28675843,607.47,606.1,0.32997855]
[1743447935989,0.28675843,607.47,606.11,1.97175938]
[1743447936188,0.28675843,607.47,606.13,0.32996221]
[1743447936487,0.28675843,607.47,606.14,1.97175938]
[1743447936685,0.28675843,607.47,606.16,0.32994588]
[1743447936885,0.28675843,607.47,606.17,1.97175938]
[1743447937190,0.28675843,607.47,606.19,0.32992956]
[1743447937385,0.28675843,607.47,606.2,1.97175938]
[1743447937590,0.28675843,607.47,606.21,1.97175938]
[1743447937791,0.28675843,607.47,606.22,1.97175938]
[1743447938090,0.28675843,607.47,606.23,1.97175938]
[1743447938289,0.28675843,607.47,606.25,0.3298969]
[1743447940887,1.075,607.51,606.25,0.3298969]
[1743447941388,0.28669229,607.49,606.25,0.3298969]
[1743447943896,1.075,607.51,606.25,0.3298969]
[1743447944398,0.28671,607.5,606.25,0.3298969]
[1743447946894,0.28671,607.5,606.26,1.96249258]
[1743447947202,0.28671,607.5,606.28,0.32988058]
[1743447947397,0.28671,607.5,606.28,2.29237316]
[1743447947592,0.28671,607.5,606.28,0.32988058]
[1743447947802,0.28671,607.5,606.29,1.96249258]
[1743447947998,0.28671,607.5,606.31,0.32986426]
[1743447949999,1.075,607.51,606.31,0.32986426]
[1743447950501,0.28672654,607.49,606.31,0.32986426]
[1743447953001,0.32899065,607.92,606.31,0.32986426]
[1743447953201,0.28665332,607.53,606.31,0.32986426]
[1743447953704,0.32899065,607.92,606.31,0.32986426]
[1743447953906,0.28664388,607.57,606.31,0.32986426]
[1743447954098,0.32899065,607.92,606.31,0.32986426]
[1743447954297,0.30266246,607.91,606.31,0.32986426]
[1743447954504,1.08366246,607.91,606.31,0.32986426]
[1743447954701,0.30266246,607.9,606.31,0.32986426]
[1743447955207,0.30267258,607.89,606.31,0.32986426]
[1743447956205,0.28671355,607.88,606.31,0.32986426]
[1743447956407,0.30267258,607.87,606.31,0.32986426]
[1743447956607,0.30265394,607.86,606.31,0.32986426]
[1743447956807,0.30265394,607.85,606.31,0.32986426]
[1743447957004,0.30265394,607.87,606.31,0.32986426]
[1743447957310,0.30265394,607.86,606.31,0.32986426]
[1743447957607,0.30265394,607.85,606.31,0.32986426]
[1743447957801,0.30265394,607.84,606.31,0.32986426]
[1743447958001,0.30265394,607.87,606.31,0.32986426]
[1743447958204,0.30265394,607.83,606.31,0.32986426]
[1743447958406,0.30265394,607.82,606.31,0.32986426]
[1743447958708,0.30267596,607.81,606.31,0.32986426]
[1743447958908,0.30267596,607.8,606.31,0.32986426]
[1743447959109,0.30267596,607.9,606.31,0.32986426]
[1743447959310,0.30267596,607.89,606.31,0.32986426]
[1743447959502,0.30267596,607.88,606.31,0.32986426]
[1743447959703,0.30267596,607.9,606.31,0.32986426]
[1743447959903,0.28668993,607.88,606.31,0.32986426]
[1743447960107,0.30267659,607.87,606.31,0.32986426]
[1743447961105,0.28668993,607.88,606.31,0.32986426]
[1743447961307,0.30269687,607.87,606.31,0.32986426]
[1743447962208,0.2867419,607.86,606.31,0.32986426]
[1743447962413,0.30269687,607.85,606.31,0.32986426]
[1743447964217,0.30272523,607.84,606.31,0.32986426]
[1743447964416,0.30272523,607.85,606.31,0.32986426]
[1743447964616,0.2867419,607.86,606.31,0.32986426]
[1743447964617,0.30272523,607.84,606.31,0.32986426]
[1743447964814,0.30272523,607.85,606.31,0.32986426]
[1743447965013,0.30272523,607.84,606.31,0.32986426]
[1743447965219,0.30272523,607.9,606.31,0.32986426]
[1743447965412,0.28671591,607.84,606.31,0.32986426]
[1743447965618,0.30272523,607.83,606.31,0.32986426]
[1743447965915,0.30272912,607.82,606.31,0.32986426]
[1743447966116,0.30272912,607.81,606.31,0.32986426]
[1743447966315,0.30272912,607.8,606.31,0.32986426]
[1743447966513,0.28671591,607.84,606.31,0.32986426]
[1743447966514,0.30272912,607.83,606.31,0.32986426]
[1743447966715,0.30272912,607.82,606.31,0.32986426]
[1743447966916,0.30272912,607.83,606.31,0.32986426]
[1743447967114,0.30272912,607.82,606.31,0.32986426]
[1743447967319,0.30272912,607.81,606.31,0.32986426]
[1743447967818,0.30272912,607.8,606.31,0.32986426]
[1743447968120,0.30272912,607.79,606.31,0.32986426]
[1743447968319,0.58947102,607.79,606.31,0.32986426]
[1743447968520,0.30272912,607.78,606.31,0.32986426]
[1743447970621,0.30276001,607.77,606.31,0.32986426]
[1743447970822,0.30276001,607.78,606.31,0.32986426]
[1743447971123,0.28674426,607.76,606.31,0.32986426]
[1743447971324,0.30276001,607.75,606.31,0.32986426]
[1743447973616,0.28674426,607.76,606.31,0.32986426]
[1743447973824,0.30275167,607.75,606.31,0.32986426]
[1743447974224,0.30275167,607.74,606.31,0.32986426]
[1743447974525,0.30275167,607.73,606.31,0.32986426]
[1743447977225,0.28676907,607.72,606.31,0.32986426]
[1743447977427,0.30275167,607.71,606.31,0.32986426]
[1743447980127,0.30275167,607.7,606.31,0.32986426]
[1743447980326,0.28676907,607.7,606.31,0.32986426]
[1743447980521,0.30275167,607.69,606.31,0.32986426]
[1743447983229,0.28677379,607.68,606.31,0.32986426]
[1743447983425,0.30275167,607.67,606.31,0.32986426]
[1743447986228,0.28677734,607.66,606.31,0.32986426]
[1743447986429,0.30275678,607.65,606.31,0.32986426]
[1743447989137,0.32914225,607.64,606.31,0.32986426]
[1743447989334,0.61592077,607.64,606.31,0.32986426]
[1743447989639,0.30286915,607.63,606.31,0.32986426]
[1743447990533,0.30286915,607.62,606.31,0.32986426]
[1743447990737,0.30286915,607.61,606.31,0.32986426]
[1743447990935,0.30286915,607.6,606.31,0.32986426]
[1743447991134,0.30286915,607.59,606.31,0.32986426]
[1743447991337,0.30286915,607.63,606.31,0.32986426]
[1743447991534,0.30286915,607.62,606.31,0.32986426]
[1743447991838,0.30286915,607.61,606.31,0.32986426]
[1743447992036,0.30286915,607.6,606.31,0.32986426]
[1743447992239,0.30286915,607.59,606.31,0.32986426]
[1743447992440,0.30286915,607.6,606.31,0.32986426]
[1743447992639,0.30278193,607.59,606.31,0.32986426]
[1743447992841,0.30278193,607.58,606.31,0.32986426]
[1743447993045,0.30278193,607.6,606.31,0.32986426]
[1743447993344,0.30278193,607.59,606.31,0.32986426]
[1743447993541,0.30278193,607.6,606.31,0.32986426]
[1743447993843,0.30278193,607.59,606.31,0.32986426]
[1743447994046,0.30278193,607.58,606.31,0.32986426]
[1743447994344,0.30278338,607.57,606.31,0.32986426]
[1743447994542,0.30278338,607.56,606.31,0.32986426]
[1743447994743,0.30278338,607.6,606.31,0.32986426]
[1743447995044,0.30278338,607.59,606.31,0.32986426]
[1743447995240,0.30278338,607.58,606.31,0.32986426]
[1743447995445,0.30278338,607.6,606.31,0.32986426]
[1743447995645,0.30278338,607.59,606.31,0.32986426]
[1743447995845,0.30278338,607.58,606.31,0.32986426]
[1743447996046,0.30278338,607.57,606.31,0.32986426]
[1743447996240,0.28677261,607.61,606.31,0.32986426]
[1743447996444,0.3027476,607.6,606.31,0.32986426]
[1743447999950,0.28677261,607.61,606.31,0.32986426]
[1743448000651,0.30271226,607.6,606.31,0.32986426]
[1743448001147,0.30271226,607.59,606.31,0.32986426]
[1743448001451,0.30271226,607.58,606.31,0.32986426]
[1743448002246,0.30273028,607.57,606.31,0.32986426]
[1743448002446,0.30273028,607.56,606.31,0.32986426]
[1743448002645,0.30273028,607.55,606.31,0.32986426]
[1743448002851,0.30273028,607.54,606.31,0.32986426]
[1743448003051,0.30273028,607.53,606.31,0.32986426]
[1743448003352,0.30273028,607.52,606.31,0.32986426]
[1743448003551,0.30273028,607.51,606.31,0.32986426]
[1743448003747,0.30270489,607.5,606.31,0.32986426]
[1743448003949,0.30270489,607.49,606.31,0.32986426]
[1743448004147,0.30270489,607.48,606.31,0.32986426]
[1743448004350,0.30270489,607.47,606.31,0.32986426]
[1743448004548,0.30270489,607.46,606.31,0.32986426]
[1743448004747,0.30270489,607.48,606.31,0.32986426]
[1743448004952,0.30270489,607.47,606.31,0.32986426]
[1743448005151,0.30270489,607.46,606.31,0.32986426]
[1743448005355,0.30270489,607.45,606.31,0.32986426]
[1743448005551,0.2867478,607.49,606.31,0.32986426]
[1743448005852,0.30271904,607.48,606.31,0.32986426]
[1743448007156,0.30271904,607.47,606.31,0.32986426]
[1743448007355,0.30271904,607.46,606.31,0.32986426]
[1743448008056,0.28668993,607.47,606.31,0.32986426]
[1743448012250,1.162,607.46,606.31,0.32986426]
[1743448012457,1.162,607.46,606.32,1.96479448]
[1743448012654,1.162,607.46,606.33,1.96479448]
[1743448012852,1.162,607.46,606.34,1.96479448]
[1743448013058,1.162,607.46,606.35,1.96479448]
[1743448013359,1.162,607.46,606.36,1.96479448]
[1743448013560,0.28669229,607.45,606.37,1.96479448]
[1743448013759,0.28669229,607.45,606.38,1.96479448]
[1743448014055,0.28669229,607.45,606.39,4.71670542]
[1743448014254,0.28669229,607.45,606.4,1.96479448]
[1743448014459,0.28669229,607.45,606.41,1.96479448]
[1743448014758,0.28669229,607.45,606.39,2.75191094]
[1743448014759,0.28669229,607.45,606.42,1.96479448]
[1743448014953,0.28669229,607.45,606.4,1.96479448]
[1743448015153,0.28669229,607.45,606.41,4.71670542]
[1743448015357,0.28669229,607.45,606.42,1.96479448]
[1743448015654,0.28669229,607.45,606.43,1.96479448]
[1743448015859,1.162,607.46,606.45,0.32978811]
[1743448016255,0.28668166,607.44,606.45,0.32978811]
[1743448016559,0.28668166,607.44,606.45,2.29458259]
[1743448016958,0.28668166,607.44,606.45,0.32978811]
[1743448017460,0.28668166,607.44,606.45,3.08169905]
[1743448018160,0.28668166,607.44,606.46,1.96479448]
[1743448018356,0.28668166,607.44,606.48,0.32977179]
[1743448018561,0.28668166,607.44,606.49,1.96479448]
[1743448018761,0.28668166,607.44,606.5,1.96479448]
[1743448018963,1.162,607.46,606.51,2.29454996]
[1743448019159,0.28667339,607.43,606.52,2.29454452]
[1743448019462,0.28667339,607.43,606.53,0.32974461]
[1743448021859,1.162,607.46,606.53,0.32974461]
[1743448022263,0.28672654,607.42,606.53,0.32974461]
[1743448024968,1.162,607.46,606.53,0.32974461]
[1743448025364,0.28673717,607.41,606.53,0.32974461]
[1743448026366,0.30275622,607.4,606.53,0.32974461]
[1743448027676,0.3028009,607.39,606.53,0.32974461]
[1743448027867,0.3028009,607.38,606.53,0.32974461]
[1743448028071,0.3028009,607.37,606.53,0.32974461]
[1743448028277,0.28680216,607.38,606.53,0.32974461]
[1743448028574,0.30278495,607.37,606.53,0.32974461]
[1743448030073,0.28680216,607.38,606.53,0.32974461]
[1743448031075,0.30279554,607.37,606.53,0.32974461]
[1743448031375,0.30279554,607.36,606.53,0.32974461]
[1743448034073,0.30279554,607.45,606.53,0.32974461]
[1743448034277,0.28682579,607.35,606.53,0.32974461]
[1743448034477,0.30279554,607.34,606.53,0.32974461]
[1743448034878,0.28683762,607.33,606.53,0.32974461]
[1743448035479,0.30279554,607.32,606.53,0.32974461]
[1743448036478,0.28683762,607.33,606.53,0.32974461]
[1743448036479,0.30290089,607.31,606.53,0.32974461]
[1743448036681,0.30290089,607.32,606.53,0.32974461]
[1743448036880,0.30290089,607.31,606.53,0.32974461]
[1743448037072,0.30290089,607.3,606.53,0.32974461]
[1743448037279,0.30290089,607.29,606.53,0.32974461]
[1743448037475,0.30290089,607.28,606.53,0.32974461]
[1743448037681,0.30290089,607.3,606.53,0.32974461]
[1743448037875,0.30290089,607.29,606.53,0.32974461]
[1743448038077,0.30290089,607.28,606.53,0.32974461]
[1743448038281,0.28686481,607.31,606.53,0.32974461]
[1743448038282,0.30290089,607.27,606.53,0.32974461]
[1743448038477,0.30290089,607.3,606.53,0.32974461]
[1743448038683,0.30290089,607.29,606.53,0.32974461]
[1743448038878,0.30290089,607.3,606.53,0.32974461]
[1743448039085,0.30290089,607.29,606.53,0.32974461]
[1743448039283,0.30290089,607.28,606.53,0.32974461]
[1743448039683,0.30290089,607.27,606.53,0.32974461]
[1743448039882,0.30290089,607.26,606.53,0.32974461]
[1743448040184,0.30290089,607.25,606.53,0.32974461]
[1743448040380,0.30290089,607.24,606.53,0.32974461]
[1743448040582,0.30290089,607.23,606.53,0.32974461]
[1743448040780,0.30290089,607.25,606.53,0.32974461]
[1743448040985,0.30290089,607.24,606.53,0.32974461]
[1743448041185,0.30290089,607.23,606.53,0.32974461]
[1743448041384,0.30290089,607.22,606.53,0.32974461]
[1743448041578,0.30290089,607.21,606.53,0.32974461]
[1743448041783,0.30290089,607.2,606.53,0.32974461]
[1743448042084,0.30290089,607.19,606.53,0.32974461]
[1743448042380,0.30290089,607.18,606.53,0.32974461]
[1743448042586,0.30290089,607.25,606.53,0.32974461]
[1743448042785,0.30290089,607.24,606.53,0.32974461]
[1743448042980,0.28688018,607.26,606.53,0.32974461]
[1743448042981,0.30290089,607.25,606.53,0.32974461]
[1743448043180,0.30290089,607.45,606.53,0.32974461]
[1743448043379,0.28690856,607.24,606.53,0.32974461]
[1743448043581,0.30290089,607.23,606.53,0.32974461]
[1743448043979,0.28693103,607.22,606.53,0.32974461]
[1743448044385,0.30290089,607.21,606.53,0.32974461]
[1743448044580,0.30290089,607.21,605.44,1.96479448]
[1743448044786,0.30290089,607.21,605.46,0.33032735]
[1743448046387,0.58988516,607.2,605.46,0.33032735]
[1743448046688,0.30290089,607.19,605.46,0.33032735]
[1743448049187,0.30290089,607.18,605.46,0.33032735]
[1743448049384,0.28697244,607.18,605.46,0.33032735]
[1743448049684,0.30290089,607.17,605.46,0.33032735]
[1743448050484,0.28697244,607.18,605.46,0.33032735]
[1743448050685,0.30297128,607.17,605.46,0.33032735]
[1743448052293,0.58999934,607.16,605.46,0.33032735]
[1743448052493,0.30297128,607.15,605.46,0.33032735]
[1743448053686,0.28702806,607.16,605.46,0.33032735]
[1743448053687,0.3029744,607.14,605.46,0.33032735]
[1743448053990,0.3029744,607.13,605.46,0.33032735]
[1743448054189,0.3029744,607.12,605.46,0.33032735]
[1743448054394,0.3029744,607.11,605.46,0.33032735]
[1743448054692,0.28702806,607.16,605.46,0.33032735]
[1743448054693,0.3029744,607.1,605.46,0.33032735]
[1743448054890,0.3029744,607.09,605.46,0.33032735]
[1743448055087,0.3029744,607.15,605.46,0.33032735]
[1743448055289,0.3029744,607.14,605.46,0.33032735]
[1743448055490,0.3029744,607.13,605.46,0.33032735]
[1743448055695,0.3029744,607.15,605.46,0.33032735]
[1743448055894,0.3029744,607.14,605.46,0.33032735]
[1743448056096,0.3029744,607.13,605.46,0.33032735]
[1743448056289,0.28702806,607.16,605.46,0.33032735]
[1743448056290,0.3029744,607.12,605.46,0.33032735]
[1743448056488,0.3029744,607.11,605.46,0.33032735]
[1743448056795,0.3029744,607.1,605.46,0.33032735]
[1743448056992,0.3029744,607.15,605.46,0.33032735]
[1743448058299,0.28703517,607.14,605.46,0.33032735]
[1743448058696,0.3029744,607.13,605.46,0.33032735]
[1743448060098,0.30297743,607.12,605.46,0.33032735]
[1743448060397,0.30297743,607.11,605.46,0.33032735]
[1743448060593,0.30297743,607.13,605.46,0.33032735]
[1743448060900,0.30297743,607.12,605.46,0.33032735]
[1743448061092,0.30297743,607.45,605.46,0.33032735]
[1743448061291,0.28704227,607.12,605.46,0.33032735]
[1743448061491,0.32925062,607.44,605.46,0.33032735]
[1743448061791,0.28699492,607.11,605.46,0.33032735]
[1743448061996,0.30298043,607.1,605.46,0.33032735]
[1743448062397,0.28699611,607.1,605.46,0.33032735]
[1743448062599,0.30298043,607.09,605.46,0.33032735]
[1743448064203,0.5900156,607.08,605.46,0.33032735]
[1743448064404,0.30298043,607.07,605.46,0.33032735]
[1743448066302,0.30299476,607.06,605.46,0.33032735]
[1743448066604,0.30299476,607.05,605.46,0.33032735]
[1743448066802,0.30299476,607.04,605.46,0.33032735]
[1743448067001,0.30299476,607.07,605.46,0.33032735]
[1743448067198,0.30299476,607.06,605.46,0.33032735]
[1743448067504,0.28704464,607.03,605.46,0.33032735]
[1743448067703,0.30299476,607.02,605.46,0.33032735]
[1743448069102,0.915,607.01,605.46,0.33032735]
[1743448069303,0.30299476,607.0,605.46,0.33032735]
[1743448070904,0.915,607.01,605.46,0.33032735]
[1743448071204,0.3029906,607.0,605.46,0.33032735]
[1743448072506,0.915,607.01,605.46,0.33032735]
[1743448073301,0.28700794,607.0,605.46,0.33032735]
[1743448076211,0.915,607.01,605.46,0.33032735]
[1743448076408,0.28696889,606.99,605.46,0.33032735]
[1743448079017,0.915,607.01,605.46,0.33032735]
[1743448079219,0.28702925,606.98,605.46,0.33032735]
[1743448085146,0.915,607.01,605.46,0.33032735]
[1743448090031,0.28697244,607.02,605.46,0.33032735]
[1743448090327,0.98274201,607.79,605.46,0.33032735]
[1743448090528,0.28689082,607.14,605.46,0.33032735]
[1743448090729,0.32906643,607.78,605.46,0.33032735]
[1743448090930,0.32906643,607.78,605.47,4.71670542]
[1743448091128,0.28684825,607.14,605.58,0.33026189]
[1743448091427,0.32906643,607.78,605.58,0.33026189]
[1743448091629,0.28681752,607.14,605.58,0.33026189]
[1743448092127,0.32906643,607.78,605.58,0.33026189]
[1743448092324,0.28681516,607.14,605.58,0.33026189]
[1743448092630,0.879,607.77,605.58,0.33026189]
[1743448092829,0.28683643,607.13,605.58,0.33026189]
[1743448093330,0.32907726,607.76,605.58,0.33026189]
[1743448093630,0.28684116,607.12,605.58,0.33026189]
[1743448093823,0.32907726,607.76,605.58,0.33026189]
[1743448094023,0.30287411,607.75,605.58,0.33026189]
[1743448094226,0.32908809,607.74,605.58,0.33026189]
[1743448094429,0.30287411,607.73,605.58,0.33026189]
[1743448094629,0.32909892,607.72,605.58,0.33026189]